lending/lending_fUSD_20240509
["ID","MTS","AMOUNT","RATE_DAILY","PERIOD"]
[326734191,1715290262828,-151.0,0.00041095,14]
[326734192,1715290262843,-1346.68,0.00041095,30]
[326734193,1715290262853,-151.0,0.00041095,14]
[326734194,1715290262863,-1013.53,0.00041095,30]
[326734195,1715290262873,-151.0,0.00041095,14]
[326734196,1715290262883,-1200.0,0.00041095,2]
[326734197,1715290262893,-500.0,0.00041095,30]
[326734198,1715290262903,-500.0,0.00041095,30]
[326734199,1715290262913,-500.0,0.00041095,30]
[326734200,1715290262923,-500.0,0.00041095,30]
[326734201,1715290262933,-4643.98,0.00041095,30]
[326734202,1715290262944,-3839.55,0.00041095,30]
[326734203,1715290262955,-1652.24,0.00041095,30]
[326734204,1715290262964,-500.0,0.00041095,30]
[326734205,1715290262975,-21416.6,0.00041095,30]
[326734206,1715290262985,-500.0,0.00041095,30]
[326734207,1715290262995,-3356.51,0.00041095,30]
[326734208,1715290263004,-500.0,0.00041095,30]
[326734209,1715290263014,-500.0,0.00041095,30]
[326734210,1715290263023,-1755.99,0.00041095,30]
[326734211,1715290263033,-500.0,0.00041095,30]
[326734212,1715290263042,-152.513025,0.00041095,14]
[326734213,1715290263051,-151.0,0.00041095,14]
[326734214,1715290263060,-500.0,0.00041095,30]
[326734215,1715290263070,-500.0,0.00041095,30]
[326734216,1715290263079,-168.385867,0.00041095,14]
[326734217,1715290263089,-812.02,0.00041095,30]
[326734218,1715290263098,-500.0,0.00041095,30]
[326734219,1715290263107,-501.8109137,0.00041095,30]
[326734220,1715290263116,-500.0,0.00041095,30]
[326734221,1715290263126,-500.0,0.00041095,30]
[326734222,1715290263135,-500.0,0.00041095,30]
[326734223,1715290263145,-500.0,0.00041095,30]
[326734224,1715290263154,-3504.87,0.00041095,30]
[326734225,1715290263163,-500.0,0.00041095,30]
[326734226,1715290263173,-500.0,0.00041095,30]
[326734227,1715290263181,-784.71,0.00041095,30]
[326734228,1715290263191,-3339.58,0.00041095,30]
[326734229,1715290263200,-500.0,0.00041095,30]
[326734230,1715290263210,-3474.04,0.00041095,30]
[326734231,1715290263219,-189.46005628,0.00041095,30]
[326734232,1715290263228,-500.0,0.00041095,30]
[326734233,1715290263237,-3066.82,0.00041095,30]
[326734234,1715290263247,-5855.6,0.00041095,30]
[326734235,1715290263256,-500.0,0.00041095,30]
[326734236,1715290263265,-1366.16,0.00041095,30]
[326734237,1715290263274,-500.0,0.00041095,30]
[326734238,1715290263283,-500.0,0.00041095,30]
[326734239,1715290263292,-13694.32,0.00041095,30]
[326734240,1715290263302,-500.0,0.00041095,30]
[326734241,1715290263312,-500.0,0.00041095,30]
[326734242,1715290263321,-500.0,0.00041095,30]
[326734243,1715290263332,-500.0,0.00041095,30]
[326734244,1715290263341,-500.0,0.00041095,30]
[326734245,1715290263350,-500.0,0.00041095,30]
[326734246,1715290263359,-500.0,0.00041095,30]
[326734247,1715290263368,-4164.35,0.00041095,30]
[326734248,1715290263377,-5191.04,0.00041095,30]
[326734249,1715290263387,-500.0,0.00041095,30]
[326734250,1715290263396,-4009.1,0.00041095,30]
[326734251,1715290263406,-583.76,0.00041095,30]
[326734252,1715290263415,-500.0,0.00041095,30]
[326734253,1715290263424,-4005.67,0.00041095,30]
[326734254,1715290263434,-151.0,0.00041095,14]
[326734255,1715290263442,-500.0,0.00041095,30]
[326734256,1715290263451,-151.0,0.00041095,14]
[326734257,1715290263460,-500.0,0.00041095,30]
[326734258,1715290263469,-1472.32,0.00041095,30]
[326734259,1715290263479,-777.3,0.00041095,30]
[326734260,1715290263488,-500.0,0.00041095,30]
[326734261,1715290263497,-1728.44,0.00041095,30]
[326734262,1715290263507,-500.0,0.00041095,30]
[326734263,1715290263516,-2616.47,0.00041095,30]
[326734264,1715290263525,-500.0,0.00041095,30]
[326734265,1715290263534,-151.0,0.00041095,14]
[326734266,1715290263543,-151.0,0.00041095,14]
[326734267,1715290263553,-500.0,0.00041095,30]
[326734268,1715290263562,-500.0,0.00041095,30]
[326734269,1715290263571,-500.0,0.00041095,30]
[326734270,1715290263581,-500.0,0.00041095,30]
[326734271,1715290263590,-500.0,0.00041095,30]
[326734272,1715290263599,-767.24,0.00041095,30]
[326734273,1715290263608,-3650.53,0.00041095,21]
[326734274,1715290263617,-858.26,0.00041095,30]
[326734275,1715290263627,-500.0,0.00041095,30]
[326734276,1715290263636,-1154.0,0.00041095,30]
[326734277,1715290263646,-500.0,0.00041095,30]
[326734278,1715290263655,-3340.37,0.00041095,30]
[326734279,1715290263664,-151.433602,0.00041095,14]
[326734280,1715290263673,-500.0,0.00041095,30]
[326734281,1715290263683,-296.616945,0.00041095,14]
[326734282,1715290263692,-729.46,0.00041095,30]
[326734283,1715290263702,-296.616945,0.00041095,14]
[326734284,1715290263712,-680.87,0.00041095,30]
[326734285,1715290263722,-644.0,0.00041095,30]
[326734286,1715290263731,-500.0,0.00041095,30]
[326734287,1715290263742,-500.0,0.00041095,30]
[326734288,1715290263751,-151.0,0.00041095,14]
[326734289,1715290263760,-152.19860159,0.00041095,30]
[326734290,1715290263770,-500.0,0.00041095,30]
[326734291,1715290263780,-5730.86,0.00041095,30]
[326734292,1715290263789,-500.0,0.00041095,30]
[326734293,1715290263798,-3257.41,0.00041095,30]
[326734294,1715290263808,-151.0,0.00041095,14]
[326734295,1715290263817,-151.0,0.00041095,14]
[326734296,1715290263826,-296.616945,0.00041095,14]
[326734297,1715290263840,-2530.95,0.00041095,30]
[326734298,1715290263851,-500.0,0.00041095,30]
[326734299,1715290263860,-296.616945,0.00041095,14]
[326734300,1715290263869,-500.0,0.00041095,30]
[326734301,1715290263880,-500.0,0.00041095,30]
[326734302,1715290263889,-151.0,0.00041095,14]
[326734303,1715290263899,-2861.52,0.00041095,30]
[326734304,1715290263908,-1539.37,0.00041095,30]
[326734305,1715290263919,-763.43,0.00041095,30]
[326734306,1715290263928,-938.19,0.00041095,30]
[326734307,1715290263937,-903.49,0.00041095,7]
[326734308,1715290263947,-215.46,0.00041095,7]
[326734309,1715290263957,-500.0,0.00041095,30]
[326734310,1715290263966,-1580.97,0.00041095,30]
[326734311,1715290263975,-3153.51,0.00041095,30]
[326734312,1715290263984,-3157.17,0.00041095,30]
[326734313,1715290263995,-500.0,0.00041095,30]
[326734314,1715290264004,-500.0,0.00041095,30]
[326734315,1715290264014,-500.0,0.00041095,30]
[326734316,1715290264024,-151.0,0.00041095,14]
[326734317,1715290264033,-534.31702145,0.00041095,30]
[326734318,1715290264043,-500.0,0.00041095,30]
[326734319,1715290264052,-500.0,0.00041095,30]
[326734320,1715290264061,-500.0,0.00041095,30]
[326734321,1715290264071,-151.0,0.00041095,14]
[326734322,1715290264080,-501.27616412,0.00041095,30]
[326734323,1715290264089,-4491.64,0.00041095,30]
[326734324,1715290264099,-2286.35,0.00041095,30]
[326734325,1715290264108,-500.0,0.00041095,2]
[326734326,1715290264117,-717.42,0.00041095,30]
[326734327,1715290264126,-434.73633328,0.00041095,30]
[326734328,1715290264135,-611.49,0.00041095,30]
[326734329,1715290264145,-989.08,0.00041095,30]
[326734330,1715290264153,-500.0,0.00041095,30]
[326734331,1715290264163,-2480.92,0.00041095,30]
[326734332,1715290264172,-151.0,0.00041095,14]
[326734333,1715290264182,-500.0,0.00041095,30]
[326734334,1715290264191,-335.492729,0.00041095,14]
[326734335,1715290264200,-151.0,0.00041095,14]
[326734336,1715290264210,-151.0,0.00041095,14]
[326734337,1715290264220,-500.0,0.00041095,30]
[326734338,1715290264229,-151.0,0.00041095,14]
[326734339,1715290264239,-17782.3703886,0.00041095,5]
[326734340,1715290264249,-157.0,0.00041096,2]
[326734341,1715290264258,-300.0,0.00041097,2]
[326734342,1715290264269,-161.84679703,0.00041102,2]
[326734343,1715290264278,-310.63927459,0.00041118,2]
[326734344,1715290264288,-206.0,0.0004112,48]
[326734345,1715290264298,-300.0,0.00041122,2]
[326734346,1715290264308,-164.25,0.00041151,2]
[326734347,1715290264318,-153.719589,0.00041162,14]
[326734348,1715290264328,-157.115868,0.00041162,14]
[326734349,1715290264337,-867.5,0.00041162,49]
[326734350,1715290264346,-867.5,0.00041162,49]
[326734351,1715290264355,-867.5,0.00041162,49]
[326734352,1715290264365,-867.5,0.00041162,49]
[326734353,1715290264374,-867.57452394,0.00041162,49]
[326734354,1715290264383,-152.874139,0.00041162,14]
[326734355,1715290264392,-151.0,0.00041162,14]
[326734356,1715290264402,-547.64,0.00041162,49]
[326734357,1715290264411,-547.64,0.00041162,49]
[326734358,1715290264421,-547.64,0.00041162,49]
[326734359,1715290264430,-547.64,0.00041162,49]
[326734360,1715290264439,-547.79891453,0.00041162,49]
[326734361,1715290264449,-500.0,0.00041162,2]
[326734362,1715290264458,-500.0,0.00041162,2]
[326734363,1715290264467,-500.0,0.00041162,2]
[326734364,1715290264476,-500.0,0.00041162,2]
[326734365,1715290264486,-560.9012,0.00041162,2]
[326734366,1715290264496,-1000.0,0.00041162,2]
[326734367,1715290264505,-1000.0,0.00041162,2]
[326734368,1715290264515,-1000.0,0.00041162,2]
[326734369,1715290264524,-1000.0,0.00041162,2]
[326734370,1715290264533,-1000.0,0.00041162,2]
[326734371,1715290264543,-1000.0,0.00041162,2]
[326734372,1715290264552,-1000.0,0.00041162,2]
[326734373,1715290264561,-1000.0,0.00041162,2]
[326734374,1715290264570,-1000.0,0.00041162,2]
[326734375,1715290264579,-1000.0,0.00041162,2]
[326734376,1715290264588,-1000.0,0.00041162,2]
[326734377,1715290264598,-1000.0,0.00041162,2]
[326734378,1715290264607,-1000.0,0.00041162,2]
[326734379,1715290264617,-1000.0,0.00041162,2]
[326734380,1715290264626,-1000.0,0.00041162,2]
[326734381,1715290264635,-1000.0,0.00041162,2]
[326734382,1715290264644,-1000.0,0.00041162,2]
[326734383,1715290264654,-1000.0,0.00041162,2]
[326734384,1715290264663,-1000.0,0.00041162,2]
[326734385,1715290264672,-1000.0,0.00041162,2]
[326734386,1715290264681,-1000.0,0.00041162,2]
[326734387,1715290264690,-1000.0,0.00041162,2]
[326734388,1715290264700,-1000.0,0.00041162,2]
[326734389,1715290264709,-1000.0,0.00041162,2]
[326734390,1715290264720,-1000.0,0.00041162,2]
[326734391,1715290264730,-1000.0,0.00041162,2]
[326734392,1715290264740,-1000.0,0.00041162,2]
[326734393,1715290264749,-1000.0,0.00041162,2]
[326734394,1715290264759,-1000.0,0.00041162,2]
[326734395,1715290264768,-1000.0,0.00041162,2]
[326734396,1715290264778,-1000.0,0.00041162,2]
[326734397,1715290264787,-1000.0,0.00041162,2]
[326734398,1715290264797,-1000.0,0.00041162,2]
[326734399,1715290264806,-1000.0,0.00041162,2]
[326734400,1715290264815,-151.0,0.00041162,14]
[326734401,1715290264826,-1000.0,0.00041162,2]
[326734402,1715290264839,-1000.0,0.00041162,2]
[326734403,1715290264848,-1000.0,0.00041162,2]
[326734404,1715290264859,-1000.0,0.00041162,2]
[326734405,1715290264871,-272.4689,0.00041162,2]
[326734406,1715290264881,-151.0,0.00041162,14]
[326734407,1715290264892,-151.0,0.00041162,14]
[326734408,1715290264902,-151.0,0.00041162,14]
[326734409,1715290264912,-151.0,0.00041162,14]
[326734410,1715290264922,-335.492729,0.00041162,14]
[326734411,1715290264932,-151.0,0.00041163,14]
[326734412,1715290264942,-151.0,0.00041163,14]
[326734413,1715290264952,-151.0,0.00041163,14]
[326734414,1715290264961,-151.0,0.00041163,14]
[326734415,1715290264971,-152.41472,0.00041163,14]
[326734416,1715290264980,-151.0,0.00041163,14]
[326734417,1715290264990,-151.476063,0.00041163,14]
[326734418,1715290264999,-151.0,0.00041163,14]
[326734419,1715290265009,-153.047295,0.00041163,14]
[326734420,1715290265019,-152.101478,0.00041163,14]
[326734421,1715290265029,-151.89186,0.00041163,14]
[326734422,1715290265039,-154.406859,0.00041163,14]
[326734423,1715290265049,-153.211788,0.00041163,14]
[326734424,1715290265058,-154.481526,0.00041163,14]
[326734425,1715290265068,-151.0,0.00041163,14]
[326734426,1715290265078,-151.0,0.00041163,14]
[326734427,1715290265089,-151.0,0.00041163,14]
[326734428,1715290265099,-151.0,0.00041163,14]
[326734429,1715290265109,-157.059815,0.00041163,14]
[326734430,1715290265119,-152.039619,0.00041163,14]
[326734431,1715290265129,-151.0,0.00041163,14]
[326734432,1715290265139,-151.456869,0.00041163,14]
[326734433,1715290265149,-151.0,0.00041163,14]
[326734434,1715290265158,-151.478068,0.00041163,14]
[326734435,1715290265168,-151.478068,0.00041163,14]
[326734436,1715290265178,-151.0,0.00041163,14]
[326734437,1715290265187,-290328.57232908,0.00041163,120]
[326734438,1715290265197,-239.8,0.000412,7]
[326734439,1715290265206,-262.12,0.000412,7]
[326734440,1715290265216,-2000.0,0.00041212,7]
[326734441,1715290265225,-200.0,0.00041212,7]
[326734442,1715290265235,-3662.07579371,0.0004127,15]
[326734443,1715290265245,-1000.0,0.00041273,31]
[326734444,1715290265254,-300.0,0.0004128,2]
[326734445,1715290265265,-361.8,0.000413,7]
[326734446,1715290265277,-300.0,0.00041316,2]
[326734447,1715290265287,-55096.1957656,0.00041341,2]
[326734448,1715290265297,-2895.1311276,0.00041341,2]
[326734449,1715290265307,-427.5900503,0.00041346,4]
[326734450,1715290265317,-200.0,0.00041351,15]
[326734451,1715290265327,-1000.0,0.00041351,30]
[326734452,1715290265337,-500.0,0.00041351,20]
[326734453,1715290265347,-200.0,0.00041351,20]
[326734454,1715290265359,-300.0,0.00041359,2]
[326734455,1715290265368,-302.68306489,0.00041364,2]
[326734456,1715290265533,-7566.48112142,0.00041368,4]
[326734457,1715290265548,-215.40285468,0.00041368,30]
[326734458,1715290265557,-171.052172,0.00041368,7]
[326734459,1715290265567,-171.052172,0.00041368,7]
[326734460,1715290265576,-159.73950565,0.00041369,31]
[326734461,1715290265587,-500.0,0.00041369,31]
[326734462,1715290265599,-420.23397186,0.00041369,31]
[326734463,1715290265608,-151.0,0.00041369,14]
[326734464,1715290265619,-500.0,0.00041369,31]
[326734465,1715290265628,-512.7038918,0.00041369,31]
[326734466,1715290265638,-545.47092938,0.00041369,31]
[326734467,1715290265648,-500.0,0.00041369,31]
[326734468,1715290265657,-500.0,0.00041369,31]
[326734469,1715290265667,-500.0,0.00041369,31]
[326734470,1715290265676,-500.0,0.00041369,31]
[326734471,1715290265687,-500.0,0.00041369,31]
[326734472,1715290265696,-500.0,0.00041369,31]
[326734473,1715290265706,-500.0,0.00041369,31]
[326734474,1715290265715,-500.0,0.00041369,31]
[326734475,1715290265724,-500.0,0.00041369,31]
[326734476,1715290265734,-500.0,0.00041369,31]
[326734477,1715290265745,-565.89,0.00041369,31]
[326734478,1715290265754,-420.73998193,0.00041369,31]
[326734479,1715290265765,-1023.61,0.00041369,31]
[326734480,1715290265775,-500.0,0.00041369,31]
[326734481,1715290265784,-500.0,0.00041369,31]
[326734482,1715290265794,-500.0,0.00041369,31]
[326734483,1715290265804,-585.09,0.00041369,31]
[326734484,1715290265814,-500.0,0.00041369,31]
[326734485,1715290265824,-500.0,0.00041369,31]
[326734486,1715290265833,-500.0,0.00041369,31]
[326734487,1715290265849,-500.0,0.00041369,31]
[326734488,1715290265858,-500.0,0.00041369,31]
[326734489,1715290265868,-539.08,0.00041369,31]
[326734490,1715290265878,-500.0,0.00041369,31]
[326734491,1715290265887,-702.97,0.00041369,31]
[326734492,1715290265898,-500.0,0.00041369,31]
[326734493,1715290265907,-500.0,0.00041369,31]
[326734494,1715290265919,-500.0,0.00041369,31]
[326734495,1715290265930,-500.0,0.00041369,31]
[326734496,1715290265939,-500.0,0.00041369,31]
[326734497,1715290265948,-500.0,0.00041369,31]
[326734498,1715290265958,-500.0,0.00041369,31]
[326734499,1715290265967,-500.0,0.00041369,31]
[326734500,1715290265977,-500.0,0.00041369,31]
[326734501,1715290265986,-853.39,0.00041369,31]
[326734502,1715290265996,-500.0,0.00041369,31]
[326734503,1715290266006,-500.0,0.00041369,31]
[326734504,1715290266015,-787.63,0.00041369,31]
[326734505,1715290266025,-152.659147,0.00041369,14]
[326734506,1715290266035,-1008.62,0.00041369,31]
[326734507,1715290266045,-500.0,0.00041369,31]
[326734508,1715290266054,-500.0,0.00041369,31]
[326734509,1715290266064,-500.0,0.00041369,31]
[326734510,1715290266073,-500.0,0.00041369,31]
[326734511,1715290266083,-500.0,0.00041369,31]
[326734512,1715290266093,-500.0,0.00041369,31]
[326734513,1715290266102,-510.4032267,0.00041369,31]
[326734514,1715290266112,-500.0,0.00041369,31]
[326734515,1715290266122,-500.0,0.00041369,31]
[326734516,1715290266131,-500.0,0.00041369,31]
[326734517,1715290266140,-500.0,0.00041369,31]
[326734518,1715290266150,-500.0,0.00041369,31]
[326734519,1715290266160,-598.48,0.00041369,31]
[326734520,1715290266169,-500.0,0.00041369,31]
[326734521,1715290266179,-500.0,0.00041369,31]
[326734522,1715290266188,-805.86,0.00041369,31]
[326734523,1715290266198,-500.0,0.00041369,31]
[326734524,1715290266207,-500.0,0.00041369,31]
[326734525,1715290266217,-500.0,0.00041369,31]
[326734526,1715290266226,-608.19801026,0.00041369,31]
[326734527,1715290266235,-500.0,0.00041369,31]
[326734528,1715290266247,-503.00021545,0.00041369,31]
[326734529,1715290266256,-500.0,0.00041369,31]
[326734530,1715290266265,-500.0,0.00041369,31]
[326734531,1715290266275,-771.89,0.00041369,31]
[326734532,1715290266284,-500.0,0.00041369,31]
[326734533,1715290266294,-500.0,0.00041369,31]
[326734534,1715290266303,-500.0,0.00041369,31]
[326734535,1715290266312,-500.0,0.00041369,31]
[326734536,1715290266322,-500.0,0.00041369,31]
[326734537,1715290266331,-500.0,0.00041369,31]
[326734538,1715290266340,-500.0,0.00041369,31]
[326734539,1715290266349,-500.0,0.00041369,31]
[326734540,1715290266358,-525.97376822,0.00041369,31]
[326734541,1715290266367,-500.0,0.00041369,31]
[326734542,1715290266377,-615.44578115,0.00041369,31]
[326734543,1715290266386,-500.0,0.00041369,31]
[326734544,1715290266395,-854.59,0.00041369,31]
[326734545,1715290266404,-1177.91,0.00041369,10]
[326734546,1715290266414,-987.21,0.00041369,31]
[326734547,1715290266423,-546.22,0.00041369,31]
[326734548,1715290266432,-151.0,0.00041369,14]
[326734549,1715290266442,-500.0,0.00041369,31]
[326734550,1715290266452,-500.0,0.00041369,31]
[326734551,1715290266461,-510.58274273,0.00041369,31]
[326734552,1715290266471,-500.0,0.00041369,31]
[326734553,1715290266480,-220.48845191,0.00041369,31]
[326734554,1715290266490,-500.0,0.00041369,31]
[326734555,1715290266499,-500.0,0.00041369,31]
[326734556,1715290266509,-500.0,0.00041369,31]
[326734557,1715290266519,-500.0,0.00041369,31]
[326734558,1715290266528,-500.0,0.00041369,31]
[326734559,1715290266537,-249.992111,0.00041369,31]
[326734560,1715290266547,-500.0,0.00041369,31]
[326734561,1715290266556,-500.0,0.00041369,31]
[326734562,1715290266564,-834.64,0.00041369,31]
[326734563,1715290266574,-500.0,0.00041369,31]
[326734564,1715290266583,-723.85,0.00041369,31]
[326734565,1715290266593,-500.0,0.00041369,31]
[326734566,1715290266602,-500.0,0.00041369,31]
[326734567,1715290266611,-500.0,0.00041369,31]
[326734568,1715290266620,-500.0,0.00041369,31]
[326734569,1715290266630,-500.0,0.00041369,31]
[326734570,1715290266639,-500.0,0.00041369,31]
[326734571,1715290266648,-500.0,0.00041369,31]
[326734572,1715290266658,-383.9039749,0.00041369,31]
[326734573,1715290266667,-247.848146,0.00041369,14]
[326734574,1715290266676,-530.15,0.00041369,31]
[326734575,1715290266686,-500.0,0.00041369,31]
[326734576,1715290266695,-538.86,0.00041369,31]
[326734577,1715290266704,-500.0,0.00041369,31]
[326734578,1715290266713,-500.0,0.00041369,31]
[326734579,1715290266723,-500.0,0.00041369,31]
[326734580,1715290266732,-259.02461999,0.00041369,31]
[326734581,1715290266743,-500.0,0.00041369,31]
[326734582,1715290266752,-500.0,0.00041369,31]
[326734583,1715290266761,-500.0,0.00041369,31]
[326734584,1715290266771,-500.0,0.00041369,31]
[326734585,1715290266780,-500.0,0.00041369,31]
[326734586,1715290266789,-500.0,0.00041369,31]
[326734587,1715290266799,-500.0,0.00041369,31]
[326734588,1715290266808,-902.94,0.00041369,31]
[326734589,1715290266817,-500.0,0.00041369,31]
[326734590,1715290266826,-500.0,0.00041369,31]
[326734591,1715290266836,-500.0,0.00041369,31]
[326734592,1715290266847,-500.0,0.00041369,31]
[326734593,1715290266857,-500.0,0.00041369,31]
[326734594,1715290266866,-500.0,0.00041369,31]
[326734595,1715290266875,-500.0,0.00041369,31]
[326734596,1715290266884,-500.0,0.00041369,31]
[326734597,1715290266894,-900.51,0.00041369,31]
[326734598,1715290266903,-500.0,0.00041369,31]
[326734599,1715290266912,-500.0,0.00041369,31]
[326734600,1715290266921,-1500.0,0.00041369,31]
[326734601,1715290266931,-500.0,0.00041369,31]
[326734602,1715290266940,-500.0,0.00041369,31]
[326734603,1715290266949,-527.88,0.00041369,31]
[326734604,1715290266959,-500.0,0.00041369,31]
[326734605,1715290266968,-554.57592162,0.00041369,31]
[326734606,1715290266977,-558.62,0.00041369,31]
[326734607,1715290266987,-606.9,0.00041369,31]
[326734608,1715290266997,-512.30290258,0.00041369,31]
[326734609,1715290267006,-500.0,0.00041369,31]
[326734610,1715290267015,-500.0,0.00041369,31]
[326734611,1715290267025,-500.0,0.00041369,31]
[326734612,1715290267034,-500.0,0.00041369,31]
[326734613,1715290267043,-500.000001,0.00041369,31]
[326734614,1715290267053,-500.0,0.00041369,31]
[326734615,1715290267062,-500.0,0.00041369,31]
[326734616,1715290267071,-514.41869014,0.00041369,31]
[326734617,1715290267080,-500.0,0.00041369,31]
[326734618,1715290267090,-156.96773,0.00041369,14]
[326734619,1715290267099,-500.0,0.00041369,31]
[326734620,1715290267108,-532.46552254,0.00041369,31]
[326734621,1715290267118,-502.25987243,0.00041369,31]
[326734622,1715290267127,-500.0,0.00041369,31]
[326734623,1715290267137,-500.0,0.00041369,31]
[326734624,1715290267146,-922.15,0.00041369,31]
[326734625,1715290267156,-986.47,0.00041369,31]
[326734626,1715290267165,-644.62,0.00041369,31]
[326734627,1715290267174,-604.29,0.00041369,31]
[326734628,1715290267183,-500.0,0.00041369,31]
[326734629,1715290267193,-500.0,0.00041369,31]
[326734630,1715290267202,-500.0,0.00041369,31]
[326734631,1715290267212,-500.0,0.00041369,31]
[326734632,1715290267221,-510.54659057,0.00041369,31]
[326734633,1715290267231,-500.0,0.00041369,31]
[326734634,1715290267241,-500.0,0.00041369,31]
[326734635,1715290267250,-622.02,0.00041369,31]
[326734636,1715290267259,-641.45,0.00041369,31]
[326734637,1715290267268,-500.0,0.00041369,31]
[326734638,1715290267283,-500.0,0.00041369,31]
[326734639,1715290267292,-500.0,0.00041369,31]
[326734640,1715290267301,-513.78439118,0.00041369,31]
[326734641,1715290267313,-500.0,0.00041369,31]
[326734642,1715290267322,-500.0,0.00041369,31]
[326734643,1715290267332,-515.89315163,0.00041369,31]
[326734644,1715290267342,-671.83,0.00041369,31]
[326734645,1715290267353,-500.0,0.00041369,31]
[326734646,1715290267363,-723.71,0.00041369,31]
[326734647,1715290267372,-621.98,0.00041369,31]
[326734648,1715290267381,-500.0,0.00041369,31]
[326734649,1715290267391,-201.63700255,0.00041369,31]
[326734650,1715290267400,-500.0,0.00041369,31]
[326734651,1715290267410,-500.0,0.00041369,31]
[326734652,1715290267421,-500.0,0.00041369,31]
[326734653,1715290267430,-500.0,0.00041369,31]
[326734654,1715290267442,-500.0,0.00041369,31]
[326734655,1715290267453,-500.0,0.00041369,31]
[326734656,1715290267464,-500.0,0.00041369,31]
[326734657,1715290267476,-500.0,0.00041369,31]
[326734658,1715290267488,-948.26,0.00041369,31]
[326734659,1715290267498,-500.0,0.00041369,31]
[326734660,1715290267507,-500.0,0.00041369,31]
[326734661,1715290267518,-265.56699905,0.00041369,31]
[326734662,1715290267527,-500.0,0.00041369,31]
[326734663,1715290267536,-500.0,0.00041369,2]
[326734664,1715290267546,-500.0,0.00041369,31]
[326734665,1715290267557,-500.0,0.00041369,31]
[326734666,1715290267567,-500.0,0.00041369,31]
[326734667,1715290267578,-500.0,0.00041369,31]
[326734668,1715290267588,-500.0,0.00041369,31]
[326734669,1715290267597,-309.15366433,0.00041369,31]
[326734670,1715290267608,-850.55,0.00041369,31]
[326734671,1715290267618,-500.0,0.00041369,31]
[326734672,1715290267629,-500.0,0.00041369,31]
[326734673,1715290267639,-500.0,0.00041369,31]
[326734674,1715290267648,-509.25441099,0.00041369,31]
[326734675,1715290267657,-500.0,0.00041369,31]
[326734676,1715290267667,-500.0,0.00041369,31]
[326734677,1715290267678,-500.0,0.00041369,31]
[326734678,1715290267689,-500.0,0.00041369,31]
[326734679,1715290267699,-639.94,0.00041369,31]
[326734680,1715290267709,-500.0,0.00041369,31]
[326734681,1715290267719,-500.0,0.00041369,31]
[326734682,1715290267728,-500.0,0.00041369,31]
[326734683,1715290267738,-760.31,0.00041369,31]
[326734684,1715290267748,-500.0,0.00041369,31]
[326734685,1715290267757,-876.55,0.00041369,31]
[326734686,1715290267767,-500.0,0.00041369,31]
[326734687,1715290267777,-930.01,0.00041369,31]
[326734688,1715290267787,-525.99675264,0.00041369,31]
[326734689,1715290267797,-500.0,0.00041369,31]
[326734690,1715290267807,-544.07,0.00041369,31]